[Event "23rd Alekhine FIDE 2019"]
[Site "Voronezh"]
[Date "2019.06.20"]
[Round "9.8"]
[White "Ponomariov, Timur"]
[Black "Kuznetsov, Sergei"]
[Result "1/2-1/2"]
[ECO "A40"]
[WhiteElo "2172"]
[BlackElo "2071"]
[Annotator "NA"]
[PlyCount "66"]
[EventDate "2019.06.12"]
[EventType "swiss"]
[EventCountry "RUS"]
[SourceTitle "playchess.com"]
[Source "ChessBase"]
[SourceQuality "1"]
[TimeControl "40/5400+30:1800+30"]

1. d4 {[%emt 0:01:47]} e6 {[%emt 0:00:00]} 2. Bf4 {[%emt 0:01:59]} Nf6 {[%emt 0:00:54]} 3. e3 {[%emt 0:00:04]} c5 {[%emt 0:00:53]} 4. Nc3 {[%emt 0:02:40]} Qa5 {[%emt 0:01:08]} 5. Qd2 {[%emt 0:05:35]} cxd4 {[%emt 0:00:29]} 6. Nb5 {[%emt 0:00:59]} Qxd2+ {[%emt 0:00:08]} 7. Kxd2 {[%emt 0:00:04]} dxe3+ {[%emt 0:00:29]} 8. Bxe3 {[%emt 0:00:07]} Nd5 {[%emt 0:05:08]} 9. Bxa7 {[%emt 0:05:29]} Nc6 {[%emt 0:00:26]} 10. Be3 {[%emt 0:02:06]} Nxe3 {[%emt 0:00:38]} 11. Nc7+ {[%emt 0:01:56]} Kd8 {[%emt 0:00:05]} 12. Nxa8 {[%emt 0:00:08]} Nxf1+ {[%emt 0:00:33]} 13. Rxf1 {[%emt 0:00:04]} Bc5 {[%emt 0:00:14]} 14. Nf3 {[%emt 0:08:35]} b5 {[%emt 0:00:23]} 15. Ng5 {[%emt 0:00:05]} Rf8 {[%emt 0:01:49]} 16. Nxh7 {[%emt 0:01:08]} Rg8 {[%emt 0:05:34]} 17. Ng5 {[%emt 0:02:09]} Bb7 {[%emt 0:02:35]} 18. Nxf7+ {[%emt 0:00:07]} Kc8 {[%emt 0:00:15]} 19. Nb6+ {[%emt 0:00:21]} Kc7 {[%emt 0:04:03]} 20. Nxd7 {[%emt 0:01:24]} Kxd7 {[%emt 0:00:02]} 21. f4 {[%emt 0:14:06]} b4 {[%emt 0:03:13]} 22. c3 {[%emt 0:09:02]} Ra8 {[%emt 0:00:14]} 23. cxb4 {[%emt 0:10:01]} Bxb4+ {[%emt 0:00:21]} 24. Kc2 {[%emt 0:00:27]} Ke7 {[%emt 0:06:51]} 25. Rd1 {[%emt 0:01:30]} Rxa2 {[%emt 0:02:17]} 26. Kb3 {[%emt 0:03:36]} Ra8 {[%emt 0:04:43]} 27. Ne5 {[%emt 0:01:35]} Bd6 {[%emt 0:03:02]} 28. Ng6+ {[%emt 0:05:25]} Kd7 {[%emt 0:00:27]} 29. Ne5+ {[%emt 0:00:17]} Ke7 {[%emt 0:02:09]} 30. Ng6+ {[%emt 0:00:35]} Kd7 {[%emt 0:00:56]} 31. Ne5+ {[%emt 0:00:07]} Ke7 {[%emt 0:00:29]} 32. Ng6+ {[%emt 0:00:14]} Kd7 {[%emt 0:00:11]} 33. Ne5+ {[%emt 0:00:06]} Ke8 1/2-1/2

[Event "23rd Alekhine FIDE 2019"]
[Site "Voronezh"]
[Date "2019.06.20"]
[Round "9.9"]
[White "Stepochkin, Fedor"]
[Black "Shaydullina, Sandugach"]
[Result "1/2-1/2"]
[ECO "B94"]
[WhiteElo "1929"]
[BlackElo "2128"]
[Annotator "NA"]
[PlyCount "116"]
[EventDate "2019.06.12"]
[EventType "swiss"]
[EventCountry "RUS"]
[SourceTitle "playchess.com"]
[Source "ChessBase"]
[SourceQuality "1"]
[TimeControl "40/5400+30:1800+30"]

1. e4 {[%emt 0:00:00]} c5 {[%emt 0:00:00]} 2. Nf3 {[%emt 0:00:00]} d6 {[%emt 0:00:06]} 3. d4 {[%emt 0:00:00]} cxd4 {[%emt 0:00:05]} 4. Nxd4 {[%emt 0:00:00]} Nf6 {[%emt 0:00:06]} 5. Nc3 {[%emt 0:00:00]} a6 {[%emt 0:00:11]} 6. Bg5 {[%emt 0:07:42]} Nbd7 {[%emt 0:01:10]} 7. Qd2 {[%emt 0:01:50]} e6 {[%emt 0:00:11]} 8. O-O-O {[%emt 0:01:11]} h6 {[%emt 0:01:15]} 9. Be3 {[%emt 0:03:09]} Ng4 {[%emt 0:00:13]} 10. Be2 {[%emt 0:08:18]} Nxe3 {[%emt 0:00:44]} 11. Qxe3 {[%emt 0:00:05]} Be7 {[%emt 0:00:15]} 12. Kb1 {[%emt 0:00:26]} O-O {[%emt 0:01:22]} 13. f4 {[%emt 0:01:51]} Re8 {[%emt 0:02:24]} 14. g4 {[%emt 0:02:54]} Qb6 {[%emt 0:00:35]} 15. Qg3 {[%emt 0:06:35]} Bf6 {[%emt 0:00:29]} 16. Nb3 {[%emt 0:04:03]} a5 {[%emt 0:01:07]} 17. Nb5 {[%emt 0:05:00]} Be7 {[%emt 0:00:05]} 18. h4 {[%emt 0:01:09]} a4 {[%emt 0:02:44]} 19. N3d4 {[%emt 0:02:16]} a3 {[%emt 0:03:29]} 20. g5 {[%emt 0:03:11]} axb2 {[%emt 0:00:22]} 21. gxh6 {[%emt 0:00:08]} Bf6 {[%emt 0:00:11]} 22. Rhg1 {[%emt 0:08:18]} Ra4 {[%emt 0:02:54]} 23. Nb3 {[%emt 0:23:27]} Rxa2 {[%emt 0:04:10]} 24. Kxa2 {[%emt 0:01:58]} Qa6+ {[%emt 0:00:06]} 25. Na3 {[%emt 0:00:09]} Qxe2 {[%emt 0:00:22]} 26. Qd3 {[%emt 0:02:09]} Qf2 {[%emt 0:02:02]} 27. Rdf1 {[%emt 0:00:42]} Qa7 {[%emt 0:00:31]} 28. Rxg7+ {[%emt 0:01:42]} Kf8 {[%emt 0:02:05]} 29. Qg3 {[%emt 0:08:21]} b5 {[%emt 0:01:55]} 30. Rg8+ {[%emt 0:01:39]} Ke7 {[%emt 0:00:05]} 31. Rxe8+ {[%emt 0:00:10]} Kxe8 {[%emt 0:00:04]} 32. c3 {[%emt 0:02:08]} Nb6 {[%emt 0:02:41]} 33. Kxb2 {[%emt 0:01:43]} b4 {[%emt 0:01:11]} 34. Nb5 {[%emt 0:01:51]} Nc4+ {[%emt 0:01:08]} 35. Kc2 {[%emt 0:01:45]} Qa2+ {[%emt 0:00:34]} 36. Kd3 {[%emt 0:00:04]} Qxb3 {[%emt 0:02:26]} 37. Qg8+ {[%emt 0:00:47]} Kd7 {[%emt 0:00:50]} 38. Qxf7+ {[%emt 0:00:11]} Be7 {[%emt 0:00:07]} 39. h7 {[%emt 0:00:46]} bxc3 {[%emt 0:00:14]} 40. h8=Q {[%emt 0:00:35]} c2+ {[%emt 0:04:25]} 41. Qc3 {[%emt 0:30:44]} Nb2+ {[%emt 0:30:30]} 42. Ke3 {[%emt 0:00:32]} Nd1+ {[%emt 0:00:12]} 43. Kd2 {[%emt 0:00:54]} Nxc3 {[%emt 0:00:50]} 44. Nxc3 {[%emt 0:00:04]} Ba6 {[%emt 0:03:09]} 45. Rc1 {[%emt 0:00:52]} Qc4 {[%emt 0:01:14]} 46. Kxc2 {[%emt 0:00:56]} Bb7 {[%emt 0:01:27]} 47. Re1 {[%emt 0:00:33]} Bc6 {[%emt 0:00:19]} 48. Re3 {[%emt 0:00:37]} Ba4+ {[%emt 0:00:15]} 49. Kd2 {[%emt 0:00:07]} Qd4+ {[%emt 0:00:46]} 50. Ke2 {[%emt 0:00:15]} Bb3 {[%emt 0:00:16]} 51. Kf3 {[%emt 0:00:57]} Bd1+ {[%emt 0:00:51]} 52. Nxd1 {[%emt 0:00:03]} Qxd1+ {[%emt 0:00:05]} 53. Re2 {[%emt 0:00:16]} Qf1+ {[%emt 0:00:25]} 54. Rf2 {[%emt 0:00:54]} Qh1+ {[%emt 0:01:42]} 55. Rg2 {[%emt 0:00:24]} Qd1+ {[%emt 0:00:15]} 56. Kg3 {[%emt 0:00:33]} Qe1+ {[%emt 0:00:11]} 57. Rf2 {[%emt 0:00:47]} Qg1+ {[%emt 0:00:09]} 58. Kf3 {[%emt 0:00:34]} Qd1+ {[%emt 0:00:07]} 1/2-1/2

[Event "23rd Alekhine FIDE 2019"]
[Site "Voronezh"]
[Date "2019.06.20"]
[Round "9.10"]
[White "Krupin, Victor"]
[Black "Skvortsov, Andrei"]
[Result "0-1"]
[ECO "B02"]
[WhiteElo "1958"]
[BlackElo "2123"]
[Annotator "NA"]
[PlyCount "104"]
[EventDate "2019.06.12"]
[EventType "swiss"]
[EventCountry "RUS"]
[SourceTitle "playchess.com"]
[Source "ChessBase"]
[SourceQuality "1"]
[TimeControl "40/5400+30:1800+30"]

1. e4 {[%emt 0:00:00]} Nf6 {[%emt 0:20:17]} 2. Nc3 {[%emt 0:00:08]} d5 {[%emt 0:00:07]} 3. exd5 {[%emt 0:00:16]} Nxd5 {[%emt 0:00:01]} 4. d4 {[%emt 0:00:27]} g6 {[%emt 0:00:18]} 5. Nf3 {[%emt 0:01:16]} Bg7 {[%emt 0:00:02]} 6. Bc4 {[%emt 0:00:56]} c6 {[%emt 0:00:01]} 7. Nxd5 {[%emt 0:01:32]} cxd5 {[%emt 0:00:01]} 8. Bd3 {[%emt 0:00:29]} O-O {[%emt 0:01:12]} 9. O-O {[%emt 0:00:17]} Bg4 {[%emt 0:04:34]} 10. c3 {[%emt 0:00:27]} Nd7 {[%emt 0:00:05]} 11. Bf4 {[%emt 0:00:35]} Qb6 {[%emt 0:00:08]} 12. Rb1 {[%emt 0:01:37]} Qf6 {[%emt 0:00:05]} 13. Bg3 {[%emt 0:02:26]} Bxf3 {[%emt 0:00:05]} 14. Qxf3 {[%emt 0:00:19]} Qxf3 {[%emt 0:00:04]} 15. gxf3 {[%emt 0:00:29]} a6 {[%emt 0:01:10]} 16. Rfe1 {[%emt 0:01:56]} e6 {[%emt 0:00:02]} 17. a4 {[%emt 0:01:07]} Rfc8 {[%emt 0:01:02]} 18. a5 {[%emt 0:01:20]} Bf8 {[%emt 0:00:24]} 19. h4 {[%emt 0:01:12]} h5 {[%emt 0:00:02]} 20. Kg2 {[%emt 0:02:38]} Be7 {[%emt 0:00:12]} 21. Ra1 {[%emt 0:00:41]} Kf8 {[%emt 0:03:05]} 22. Kh3 {[%emt 0:01:26]} Nf6 {[%emt 0:00:18]} 23. Bf4 {[%emt 0:03:49]} Ne8 {[%emt 0:00:02]} 24. Rg1 {[%emt 0:01:49]} Bd6 {[%emt 0:00:23]} 25. Bh6+ {[%emt 0:01:30]} Ke7 {[%emt 0:00:02]} 26. Rae1 {[%emt 0:05:03]} Kd7 {[%emt 0:00:54]} 27. Bd2 {[%emt 0:01:58]} Bc7 {[%emt 0:00:27]} 28. Ra1 {[%emt 0:09:39]} Nd6 {[%emt 0:00:13]} 29. Ra4 {[%emt 0:09:45]} Rcb8 {[%emt 0:01:16]} 30. Rga1 {[%emt 0:01:06]} Nc8 {[%emt 0:00:15]} 31. b4 {[%emt 0:01:19]} Na7 {[%emt 0:00:12]} 32. R4a2 {[%emt 0:00:46]} Kc6 {[%emt 0:00:23]} 33. Bc2 {[%emt 0:01:23]} Bd6 {[%emt 0:01:36]} 34. Ba4+ {[%emt 0:01:27]} Kc7 {[%emt 0:00:03]} 35. Bc2 {[%emt 0:01:06]} Kd7 {[%emt 0:00:25]} 36. Bd3 {[%emt 0:00:59]} Rc8 {[%emt 0:00:12]} 37. Rb1 {[%emt 0:01:35]} Nb5 {[%emt 0:00:01]} 38. Bxb5+ {[%emt 0:00:43]} axb5 {[%emt 0:00:02]} 39. Rba1 {[%emt 0:00:26]} Ra6 {[%emt 0:00:02]} 40. Ra3 {[%emt 0:04:30]} Rca8 {[%emt 0:00:05]} 41. Bc1 {[%emt 0:30:27]} Kc6 {[%emt 0:30:17]} 42. R3a2 {[%emt 0:10:39]} b6 {[%emt 0:00:11]} 43. Bd2 {[%emt 0:00:33]} Bc7 {[%emt 0:00:10]} 44. c4 {[%emt 0:05:01]} dxc4 {[%emt 0:00:08]} 45. Bc3 {[%emt 0:00:46]} bxa5 {[%emt 0:00:04]} 46. bxa5 {[%emt 0:00:32]} Bd6 {[%emt 0:00:23]} 47. Rb1 {[%emt 0:00:38]} Rb8 {[%emt 0:00:05]} 48. Rab2 {[%emt 0:00:52]} b4 {[%emt 0:01:30]} 49. Bxb4 {[%emt 0:00:28]} Rxb4 {[%emt 0:00:02]} 50. Rxb4 {[%emt 0:00:42]} Bxb4 {[%emt 0:00:02]} 51. Rxb4 {[%emt 0:00:32]} Kd5 {[%emt 0:00:02]} 52. Rb7 {[%emt 0:01:26]} c3 {[%emt 0:00:04]} 0-1

[Event "23rd Alekhine FIDE 2019"]
[Site "Voronezh"]
[Date "2019.06.20"]
[Round "9.11"]
[White "Abramov, Ilya"]
[Black "Chernov, Vladimir S"]
[Result "1/2-1/2"]
[ECO "D18"]
[WhiteElo "2098"]
[BlackElo "1999"]
[Annotator "NA"]
[PlyCount "142"]
[EventDate "2019.06.12"]
[EventType "swiss"]
[EventCountry "RUS"]
[SourceTitle "playchess.com"]
[Source "ChessBase"]
[SourceQuality "1"]
[TimeControl "40/5400+30:1800+30"]

1. d4 {[%emt 0:00:00]} d5 {[%emt 0:00:00]} 2. c4 {[%emt 0:00:00]} c6 {[%emt 0:00:00]} 3. Nf3 {[%emt 0:00:00]} Nf6 {[%emt 0:00:00]} 4. Nc3 {[%emt 0:00:00]} dxc4 {[%emt 0:00:00]} 5. a4 {[%emt 0:00:02]} Bf5 {[%emt 0:00:00]} 6. e3 {[%emt 0:00:38]} e6 {[%emt 0:00:00]} 7. Bxc4 {[%emt 0:00:04]} Bb4 {[%emt 0:00:04]} 8. O-O {[%emt 0:00:10]} O-O {[%emt 0:00:05]} 9. Ne2 {[%emt 0:03:41]} Nbd7 {[%emt 0:03:50]} 10. Ng3 {[%emt 0:00:19]} Bg6 {[%emt 0:00:39]} 11. Nh4 {[%emt 0:03:52]} Qe7 {[%emt 0:01:11]} 12. Nxg6 {[%emt 0:03:11]} hxg6 {[%emt 0:00:03]} 13. Qc2 {[%emt 0:02:48]} c5 {[%emt 0:03:28]} 14. dxc5 {[%emt 0:00:52]} Nxc5 {[%emt 0:00:35]} 15. e4 {[%emt 0:00:56]} e5 {[%emt 0:01:48]} 16. Bg5 {[%emt 0:05:34]} Ne6 {[%emt 0:01:04]} 17. Bxe6 {[%emt 0:00:45]} Qxe6 {[%emt 0:00:06]} 18. Rac1 {[%emt 0:06:20]} Rac8 {[%emt 0:00:54]} 19. Qd3 {[%emt 0:00:08]} Bc5 {[%emt 0:02:47]} 20. Ne2 {[%emt 0:01:41]} Qb6 {[%emt 0:05:02]} 21. Bxf6 {[%emt 0:02:33]} gxf6 {[%emt 0:01:16]} 22. a5 {[%emt 0:05:21]} Qxa5 {[%emt 0:03:02]} 23. Nc3 {[%emt 0:00:09]} Qb6 {[%emt 0:04:45]} 24. Nd5 {[%emt 0:01:37]} Qxb2 {[%emt 0:12:36]} 25. Rb1 {[%emt 0:03:47]} Qd4 {[%emt 0:02:06]} 26. Qf3 {[%emt 0:01:28]} Rc6 {[%emt 0:15:11]} 27. Rfd1 {[%emt 0:02:40]} Qc4 {[%emt 0:00:17]} 28. Nxf6+ {[%emt 0:00:36]} Rxf6 {[%emt 0:12:09]} 29. Qxf6 {[%emt 0:00:26]} Qxe4 {[%emt 0:00:26]} 30. Re1 {[%emt 0:02:51]} Qd5 {[%emt 0:01:56]} 31. Qxe5 {[%emt 0:02:54]} Qxe5 {[%emt 0:00:12]} 32. Rxe5 {[%emt 0:00:04]} b6 {[%emt 0:00:07]} 33. Kf1 {[%emt 0:01:16]} a5 {[%emt 0:00:30]} 34. Re4 {[%emt 0:02:19]} Kg7 {[%emt 0:01:44]} 35. Ke2 {[%emt 0:04:21]} Rd8 {[%emt 0:01:06]} 36. h4 {[%emt 0:00:27]} Bb4 {[%emt 0:00:56]} 37. Rd1 {[%emt 0:00:15]} Rc8 {[%emt 0:01:57]} 38. g4 {[%emt 0:08:24]} Rc2+ {[%emt 0:01:47]} 39. Kf3 {[%emt 0:00:06]} Bc5 {[%emt 0:00:43]} 40. Re2 {[%emt 0:00:06]} Rc3+ {[%emt 0:01:23]} 41. Kg2 {[%emt 0:31:47]} a4 {[%emt 0:30:35]} 42. Rb1 {[%emt 0:00:25]} a3 {[%emt 0:00:30]} 43. Rb5 {[%emt 0:02:57]} Rc4 {[%emt 0:01:16]} 44. Kf3 {[%emt 0:00:32]} Rc3+ {[%emt 0:03:11]} 45. Kg2 {[%emt 0:00:11]} Kf6 {[%emt 0:01:24]} 46. Rb1 {[%emt 0:00:07]} Rc4 {[%emt 0:00:51]} 47. Kf3 {[%emt 0:00:19]} Bd4 {[%emt 0:00:16]} 48. Rb3 {[%emt 0:00:52]} Bc5 {[%emt 0:03:38]} 49. Rb1 {[%emt 0:01:22]} Ra4 {[%emt 0:00:31]} 50. Rh1 {[%emt 0:01:07]} Bd4 {[%emt 0:01:15]} 51. Ra2 {[%emt 0:00:37]} Bb2 {[%emt 0:00:22]} 52. h5 {[%emt 0:01:29]} Kg7 {[%emt 0:01:07]} 53. hxg6 {[%emt 0:01:39]} fxg6 {[%emt 0:00:14]} 54. Rd1 {[%emt 0:00:32]} Rc4 {[%emt 0:01:20]} 55. Rd3 {[%emt 0:00:33]} b5 {[%emt 0:00:11]} 56. Raxa3 {[%emt 0:00:24]} Bxa3 {[%emt 0:00:08]} 57. Rxa3 {[%emt 0:00:02]} b4 {[%emt 0:00:40]} 58. Ra5 {[%emt 0:00:26]} Kf6 {[%emt 0:00:49]} 59. Rb5 {[%emt 0:00:06]} Rc3+ {[%emt 0:00:30]} 60. Kg2 {[%emt 0:00:55]} Rb3 {[%emt 0:00:10]} 61. Kh2 {[%emt 0:00:21]} Rb2 {[%emt 0:00:40]} 62. Kg3 {[%emt 0:00:05]} b3 {[%emt 0:01:48]} 63. Kf3 {[%emt 0:00:32]} Rb1 {[%emt 0:00:27]} 64. Kf4 {[%emt 0:00:07]} Rf1 {[%emt 0:02:57]} 65. Rb6+ {[%emt 0:00:37]} Kf7 {[%emt 0:00:08]} 66. f3 {[%emt 0:01:29]} g5+ {[%emt 0:00:14]} 67. Ke4 {[%emt 0:00:02]} Re1+ {[%emt 0:00:48]} 68. Kf5 {[%emt 0:01:15]} Re3 {[%emt 0:00:06]} 69. Rb7+ {[%emt 0:00:12]} Kf8 {[%emt 0:00:02]} 70. f4 {[%emt 0:00:44]} gxf4 {[%emt 0:00:31]} 71. Kxf4 {[%emt 0:00:07]} Rc3 {[%emt 0:00:11]} 1/2-1/2

[Event "23rd Alekhine FIDE 2019"]
[Site "Voronezh"]
[Date "2019.06.20"]
[Round "9.12"]
[White "Neklyudov, Taras"]
[Black "Peschansky, Mikhail"]
[Result "1/2-1/2"]
[ECO "B06"]
[WhiteElo "1921"]
[BlackElo "2075"]
[Annotator "NA"]
[PlyCount "122"]
[EventDate "2019.06.12"]
[EventType "swiss"]
[EventCountry "RUS"]
[SourceTitle "playchess.com"]
[Source "ChessBase"]
[SourceQuality "1"]
[TimeControl "40/5400+30:1800+30"]

1. e4 {[%emt 0:00:00]} g6 {[%emt 0:00:03]} 2. d4 {[%emt 0:00:00]} Bg7 {[%emt 0:00:06]} 3. Nc3 {[%emt 0:00:00]} c6 {[%emt 0:00:49]} 4. Nf3 {[%emt 0:08:09]} d6 {[%emt 0:00:52]} 5. h3 {[%emt 0:00:17]} Nf6 {[%emt 0:03:10]} 6. a4 {[%emt 0:02:25]} a5 {[%emt 0:00:26]} 7. Be2 {[%emt 0:07:57]} O-O {[%emt 0:00:48]} 8. Be3 {[%emt 0:00:35]} Qc7 {[%emt 0:02:38]} 9. Qd2 {[%emt 0:00:30]} e5 {[%emt 0:03:29]} 10. Bh6 {[%emt 0:00:12]} Re8 {[%emt 0:03:56]} 11. Bxg7 {[%emt 0:00:25]} Kxg7 {[%emt 0:00:04]} 12. O-O {[%emt 0:05:19]} Nbd7 {[%emt 0:07:26]} 13. Rfe1 {[%emt 0:00:45]} Nf8 {[%emt 0:04:09]} 14. Rad1 {[%emt 0:04:08]} Be6 {[%emt 0:05:33]} 15. Bf1 {[%emt 0:02:02]} Rad8 {[%emt 0:00:56]} 16. Qe3 {[%emt 0:01:17]} Bc8 {[%emt 0:00:43]} 17. Rd2 {[%emt 0:03:23]} Re7 {[%emt 0:08:07]} 18. Red1 {[%emt 0:02:05]} Rde8 {[%emt 0:00:49]} 19. dxe5 {[%emt 0:09:45]} dxe5 {[%emt 0:00:04]} 20. Rd6 {[%emt 0:24:22]} Rd7 {[%emt 0:00:56]} 21. Qc5 {[%emt 0:03:18]} Rxd6 {[%emt 0:00:07]} 22. Qxd6 {[%emt 0:00:24]} Qxd6 {[%emt 0:03:33]} 23. Rxd6 {[%emt 0:00:05]} N8d7 {[%emt 0:01:05]} 24. Nd2 {[%emt 0:02:56]} Nc5 {[%emt 0:02:06]} 25. f3 {[%emt 0:02:22]} Be6 {[%emt 0:01:43]} 26. Nc4 {[%emt 0:05:04]} Bxc4 {[%emt 0:00:30]} 27. Bxc4 {[%emt 0:00:01]} Nfd7 {[%emt 0:00:39]} 28. b3 {[%emt 0:01:36]} Kf8 {[%emt 0:01:08]} 29. Kf2 {[%emt 0:01:24]} Ke7 {[%emt 0:01:22]} 30. Rd2 {[%emt 0:00:43]} Nb6 {[%emt 0:00:21]} 31. Bf1 {[%emt 0:00:28]} Ne6 {[%emt 0:00:23]} 32. Ne2 {[%emt 0:01:09]} Nd7 {[%emt 0:00:32]} 33. c3 {[%emt 0:00:12]} Ndc5 {[%emt 0:00:42]} 34. Nc1 {[%emt 0:00:09]} h5 {[%emt 0:01:06]} 35. Bc4 {[%emt 0:00:36]} h4 {[%emt 0:02:27]} 36. Ke3 {[%emt 0:01:26]} Nf4 {[%emt 0:01:51]} 37. Bf1 {[%emt 0:02:07]} Rf8 {[%emt 0:04:34]} 38. Rb2 {[%emt 0:02:03]} Rd8 {[%emt 0:01:39]} 39. Rd2 {[%emt 0:00:06]} Rg8 {[%emt 0:01:09]} 40. Rb2 {[%emt 0:00:24]} Rd8 {[%emt 0:05:49]} 41. Rd2 {[%emt 0:30:09]} Rxd2 {[%emt 0:30:32]} 42. Kxd2 {[%emt 0:00:08]} f5 {[%emt 0:00:02]} 43. Ke3 {[%emt 0:00:24]} fxe4 {[%emt 0:00:16]} 44. fxe4 {[%emt 0:00:02]} Kf6 {[%emt 0:01:16]} 45. Kf3 {[%emt 0:00:33]} Kg5 {[%emt 0:03:26]} 46. Bc4 {[%emt 0:00:23]} Kf6 {[%emt 0:01:55]} 47. Bf1 {[%emt 0:00:46]} Nh5 {[%emt 0:01:29]} 48. Bd3 {[%emt 0:00:34]} Ng3 {[%emt 0:00:37]} 49. Bc2 {[%emt 0:00:25]} Nf1 {[%emt 0:00:22]} 50. Kf2 {[%emt 0:01:25]} Ng3 {[%emt 0:00:12]} 51. Kf3 {[%emt 0:00:04]} Ne6 {[%emt 0:01:00]} 52. Ne2 {[%emt 0:02:46]} Ng5+ {[%emt 0:05:41]} 53. Ke3 {[%emt 0:00:07]} Nh5 {[%emt 0:00:28]} 54. b4 {[%emt 0:00:44]} axb4 {[%emt 0:01:08]} 55. cxb4 {[%emt 0:00:01]} Ke6 {[%emt 0:00:13]} 56. Bb3+ {[%emt 0:01:23]} Kd6 {[%emt 0:00:12]} 57. a5 {[%emt 0:00:36]} Kc7 {[%emt 0:01:40]} 58. Bc4 {[%emt 0:00:54]} Nf6 {[%emt 0:03:18]} 59. Nc3 {[%emt 0:00:21]} Ne8 {[%emt 0:01:03]} 60. b5 {[%emt 0:04:44]} cxb5 {[%emt 0:02:14]} 61. Bxb5 {[%emt 0:00:27]} Nf6 {[%emt 0:01:05]} 1/2-1/2

[Event "23rd Alekhine FIDE 2019"]
[Site "Voronezh"]
[Date "2019.06.20"]
[Round "9.13"]
[White "Yakimenko, Alexander A."]
[Black "Usacheva, Glafira"]
[Result "1/2-1/2"]
[ECO "B51"]
[WhiteElo "2072"]
[BlackElo "1866"]
[Annotator "NA"]
[PlyCount "91"]
[EventDate "2019.06.12"]
[EventType "swiss"]
[EventCountry "RUS"]
[SourceTitle "playchess.com"]
[Source "ChessBase"]
[SourceQuality "1"]
[TimeControl "40/5400+30:1800+30"]

1. e4 {[%emt 0:00:00]} c5 {[%emt 0:00:00]} 2. Nf3 {[%emt 0:00:00]} d6 {[%emt 0:00:00]} 3. Bb5+ {[%emt 0:00:00]} Nd7 {[%emt 0:00:19]} 4. c3 {[%emt 0:00:33]} Ngf6 {[%emt 0:05:09]} 5. Qe2 {[%emt 0:01:21]} a6 {[%emt 0:00:40]} 6. Ba4 {[%emt 0:00:38]} e6 {[%emt 0:02:37]} 7. O-O {[%emt 0:00:25]} Be7 {[%emt 0:00:10]} 8. d4 {[%emt 0:01:56]} cxd4 {[%emt 0:00:32]} 9. cxd4 {[%emt 0:00:13]} O-O {[%emt 0:01:59]} 10. Nc3 {[%emt 0:01:15]} b5 {[%emt 0:02:05]} 11. Bc2 {[%emt 0:03:25]} Bb7 {[%emt 0:03:20]} 12. a3 {[%emt 0:04:22]} Rc8 {[%emt 0:05:09]} 13. Rd1 {[%emt 0:05:20]} Qc7 {[%emt 0:02:32]} 14. Bf4 {[%emt 0:10:22]} Rfe8 {[%emt 0:08:52]} 15. Rac1 {[%emt 0:02:00]} Qb8 {[%emt 0:06:49]} 16. Re1 {[%emt 0:08:11]} Bf8 {[%emt 0:03:31]} 17. Bb1 {[%emt 0:03:25]} Nb6 {[%emt 0:12:56]} 18. Nd2 {[%emt 0:08:28]} e5 {[%emt 0:03:12]} 19. dxe5 {[%emt 0:01:51]} dxe5 {[%emt 0:00:06]} 20. Bg5 {[%emt 0:00:20]} Be7 {[%emt 0:02:57]} 21. Ba2 {[%emt 0:00:58]} h6 {[%emt 0:01:51]} 22. Bh4 {[%emt 0:04:35]} Rc7 {[%emt 0:09:30]} 23. Bg3 {[%emt 0:02:05]} Bd6 {[%emt 0:08:06]} 24. Bh4 {[%emt 0:13:42]} Be7 {[%emt 0:00:35]} 25. Bg3 {[%emt 0:02:27]} Bd6 {[%emt 0:00:08]} 26. Bb3 {[%emt 0:00:23]} Rec8 {[%emt 0:03:12]} 27. Bh4 {[%emt 0:04:27]} Be7 {[%emt 0:00:44]} 28. Bg3 {[%emt 0:00:23]} Bd6 {[%emt 0:00:06]} 29. Na2 {[%emt 0:00:46]} Rxc1 {[%emt 0:01:10]} 30. Rxc1 {[%emt 0:01:32]} Rxc1+ {[%emt 0:00:45]} 31. Nxc1 {[%emt 0:00:02]} Qc7 {[%emt 0:00:24]} 32. Na2 {[%emt 0:03:16]} Nbd7 {[%emt 0:03:44]} 33. f3 {[%emt 0:03:10]} Bc5+ {[%emt 0:00:37]} 34. Bf2 {[%emt 0:00:19]} Bxf2+ {[%emt 0:02:57]} 35. Kxf2 {[%emt 0:01:03]} Nc5 {[%emt 0:00:13]} 36. Nb4 {[%emt 0:03:22]} Qd6 {[%emt 0:02:45]} 37. Bc2 {[%emt 0:02:49]} a5 {[%emt 0:05:54]} 38. Nd3 {[%emt 0:04:03]} Ne6 {[%emt 0:00:39]} 39. Ne1 {[%emt 0:02:55]} Qd4+ {[%emt 0:01:05]} 40. Qe3 {[%emt 0:02:17]} Qxb2 {[%emt 0:00:19]} 41. Qb6 {[%emt 0:30:21]} Qd4+ {[%emt 0:31:04]} 42. Qxd4 {[%emt 0:00:03]} Nxd4 {[%emt 0:00:12]} 43. Bd1 {[%emt 0:00:44]} Nd7 {[%emt 0:01:04]} 44. Ke3 {[%emt 0:00:31]} g5 {[%emt 0:01:06]} 45. Nd3 {[%emt 0:00:31]} f6 {[%emt 0:00:20]} 46. Nb3 {[%emt 0:01:16]} 1/2-1/2

[Event "23rd Alekhine FIDE 2019"]
[Site "Voronezh"]
[Date "2019.06.20"]
[Round "9.14"]
[White "Vasiliev, Maxim"]
[Black "Al-Hajiri, Bader"]
[Result "1-0"]
[ECO "C26"]
[WhiteElo "1898"]
[BlackElo "2121"]
[Annotator "NA"]
[PlyCount "59"]
[EventDate "2019.06.12"]
[EventType "swiss"]
[EventCountry "RUS"]
[SourceTitle "playchess.com"]
[Source "ChessBase"]
[SourceQuality "1"]
[TimeControl "40/5400+30:1800+30"]

1. e4 {[%emt 0:00:01]} e5 {[%emt 0:00:09]} 2. Nc3 {[%emt 0:00:23]} Nf6 {[%emt 0:00:43]} 3. Bc4 {[%emt 0:00:31]} Bb4 {[%emt 0:02:20]} 4. d3 {[%emt 0:01:38]} d5 {[%emt 0:00:13]} 5. exd5 {[%emt 0:00:07]} Nxd5 {[%emt 0:00:05]} 6. Nge2 {[%emt 0:00:06]} Be6 {[%emt 0:01:24]} 7. O-O {[%emt 0:00:44]} Nc6 {[%emt 0:02:05]} 8. a3 {[%emt 0:00:40]} Bxc3 {[%emt 0:04:01]} 9. bxc3 {[%emt 0:00:07]} O-O {[%emt 0:00:09]} 10. Rb1 {[%emt 0:00:22]} a6 {[%emt 0:00:58]} 11. Rxb7 {[%emt 0:04:24]} Nb6 {[%emt 0:00:50]} 12. Bxe6 {[%emt 0:00:27]} fxe6 {[%emt 0:00:02]} 13. Be3 {[%emt 0:00:08]} Qc8 {[%emt 0:00:21]} 14. Rxb6 {[%emt 0:00:15]} cxb6 {[%emt 0:00:14]} 15. Bxb6 {[%emt 0:00:01]} Ne7 {[%emt 0:01:11]} 16. d4 {[%emt 0:04:26]} Nd5 {[%emt 0:03:39]} 17. Bc5 {[%emt 0:00:06]} Rf7 {[%emt 0:00:13]} 18. Qd3 {[%emt 0:00:23]} Qc6 {[%emt 0:01:36]} 19. Qe4 {[%emt 0:02:22]} Rc8 {[%emt 0:02:03]} 20. Qxe5 {[%emt 0:00:33]} Rf5 {[%emt 0:00:08]} 21. Qg3 {[%emt 0:02:13]} h6 {[%emt 0:00:46]} 22. f4 {[%emt 0:06:07]} Nf6 {[%emt 0:00:24]} 23. Qf3 {[%emt 0:03:36]} Qa4 {[%emt 0:19:38]} 24. Ng3 {[%emt 0:00:52]} Rd5 {[%emt 0:00:21]} 25. Qe2 {[%emt 0:01:20]} Rc6 {[%emt 0:01:49]} 26. Rb1 {[%emt 0:01:39]} Rd7 {[%emt 0:03:37]} 27. Ne4 {[%emt 0:03:46]} Nd5 {[%emt 0:04:50]} 28. Rb8+ {[%emt 0:01:29]} Kh7 {[%emt 0:01:06]} 29. Ng5+ {[%emt 0:00:13]} Kg6 {[%emt 0:00:09]} 30. Qe4+ {[%emt 0:00:12]} 1-0